bitfinex/quotes_ETHUSD_20250219
["timestamp","ask_amount","ask_price","bid_price","bid_amount"]
[1739930464535,2.50321003,2676.1,2675.9,0.08275467]
[1739930464845,5.38,2676.3,2676.0,0.0826792]
[1739930465016,5.38,2676.3,2676.1,0.7631]
[1739930465216,5.38,2676.3,2676.2,0.08252827]
[1739930465826,2.50321003,2676.4,2676.2,0.08252827]
[1739930467348,7.88321003,2676.6,2676.2,0.08252827]
[1739930467646,5.38,2676.9,2676.3,0.8104]
[1739930467947,3.05321003,2677.1,2676.5,0.8125]
[1739930468450,3.05321003,2677.1,2676.6,0.0820561]
[1739930469816,3.05321003,2677.1,2676.7,0.8045]
[1739930470014,3.05321003,2677.1,2676.8,0.08158351]
[1739930470218,0.55,2677.1,2676.7,0.8045]
[1739930470418,0.55,2677.1,2676.8,0.11893945]
[1739930470645,0.55,2677.1,2676.9,0.7879]
[1739930470832,0.55,2677.1,2677.0,0.08135699]
[1739930471687,0.55,2677.1,2677.0,0.88265699]
[1739930474167,0.55,2677.1,2677.0,7.61817699]
[1739930475953,0.55,2677.1,2677.0,22.33817699]
[1739930476282,0.005,2678.4,2677.9,0.7605]
[1739930476953,0.005,2678.4,2677.8,3.73437]
[1739930476954,0.005,2678.4,2678.1,0.7605]
[1739930477158,0.005,2678.4,2678.2,0.0373334]
[1739930477338,0.005,2678.4,2678.2,0.07862381]
[1739930479042,0.255821,2678.4,2678.2,0.07862381]
[1739930479358,2.50321003,2678.3,2677.9,5.36]
[1739930479676,0.005,2678.4,2678.0,0.8017]
[1739930481468,0.005,2678.4,2678.1,0.03733134]
[1739930481639,0.005,2678.4,2678.3,0.8254]
[1739930481835,0.005,2678.4,2678.3,0.86272985]
[1739930482240,0.005,2678.4,2678.3,3.77103985]
[1739930482437,0.005,2678.4,2678.3,9.91911]
[1739930482636,0.005,2678.4,2678.3,6.1854]
[1739930482869,0.005,2678.4,2678.3,7.58842851]
[1739930483068,0.005,2678.4,2678.3,11.32213851]
[1739930483440,0.005,2678.4,2678.3,7.58842851]
[1739930483768,0.005,2678.4,2678.3,8.35271679]
[1739930483971,0.005,2678.4,2678.3,7.58842851]
[1739930484269,0.005,2678.4,2678.3,0.8254]
[1739930484472,0.005,2678.4,2678.0,0.7554]
[1739930484973,0.7581,2678.4,2677.7,0.7554]
[1739930485167,2.50321003,2678.3,2677.7,0.7554]
[1739930485468,2.50321003,2678.3,2677.3,0.7554]
[1739930485674,2.50321003,2678.3,2677.4,0.61154]
[1739930486653,3.83383154,2678.4,2677.4,0.61154]
[1739930487847,0.7581,2678.4,2677.5,0.03734163]
[1739930488240,0.7581,2678.4,2677.5,0.03734094]
[1739930488467,0.7581,2678.4,2677.4,0.61154]
[1739930488673,0.005,2678.4,2677.5,1.267496]
[1739930488879,0.005,2678.4,2677.6,3.73468]
[1739930489211,0.005,2678.4,2677.9,0.7573]
[1739930491143,0.005,2678.4,2677.8,5.36]
[1739930491369,0.005,2678.4,2677.6,0.7817]
[1739930491370,3.08073154,2678.4,2677.6,0.7817]
[1739930491571,3.46569469,2678.4,2677.6,0.7817]
[1739930492081,0.38996315,2678.4,2677.6,0.7817]
[1739930492280,0.005,2678.4,2677.6,0.7817]
[1739930492957,0.005,2678.4,2677.7,0.7794]
[1739930493174,0.005,2678.4,2677.7,0.8575312]
[1739930493348,0.8141,2678.4,2677.7,0.8575312]
[1739930493761,0.8141,2678.4,2677.8,0.26045559]
[1739930493944,0.8141,2678.4,2677.8,0.29779557]
[1739930494145,0.8141,2678.4,2677.9,0.07798046]
[1739930494675,0.8141,2678.4,2677.8,0.2977956]
[1739930495116,0.005,2678.4,2677.9,0.07798046]
[1739930495320,0.005,2678.4,2677.9,0.11531712]
[1739930495480,0.005,2678.4,2677.9,0.56695073]
[1739930495681,0.005,2678.4,2677.9,0.07798046]
[1739930495917,0.005,2678.4,2677.9,0.11531713]
[1739930496114,0.005,2678.4,2677.9,0.03733667]
[1739930496385,0.005,2678.4,2678.0,0.07828303]
[1739930496586,0.005,2678.4,2677.7,0.7794]
[1739930496887,0.005,2678.4,2678.0,0.6780407]
[1739930497318,0.005,2678.4,2678.1,0.07820767]
[1739930498411,0.005,2678.4,2678.2,0.26078103]
[1739930498715,0.005,2678.4,2678.3,0.07796878]
[1739930499080,0.005,2678.4,2678.2,0.26078103]
[1739930499512,0.005,2678.4,2678.3,0.07796878]
[1739930500017,0.005,2678.4,2678.2,0.26078103]
[1739930500217,0.005,2678.4,2678.3,0.26078103]
[1739930500446,0.005,2678.4,2678.3,0.33874981]
[1739930500607,0.005,2678.4,2678.3,0.26078103]
[1739930501599,0.7856,2678.4,2678.3,0.26078103]
[1739930502148,0.7856,2678.4,2677.4,1.8177651]
[1739930502431,0.7856,2678.4,2677.5,0.71777651]
[1739930502779,0.7856,2678.4,2677.6,0.07864751]
[1739930503606,0.7856,2678.4,2677.7,1.20599756]
[1739930503791,0.7856,2678.4,2677.8,0.8014]
[1739930504226,0.7856,2678.4,2677.9,0.07842769]
[1739930504783,0.7856,2678.4,2677.7,1.20599756]
[1739930504990,0.7856,2678.4,2678.0,0.07835233]
[1739930505228,0.7856,2678.4,2677.7,1.20599756]
[1739930505501,0.7856,2678.4,2677.8,0.07850306]
[1739930505813,0.7856,2678.4,2677.8,0.76014399]
[1739930508136,1.67154508,2678.4,2677.8,0.76014399]
[1739930508293,1.67154508,2678.4,2677.9,0.68164093]
[1739930508496,0.768,2678.1,2677.9,0.68164093]
[1739930508693,0.768,2678.1,2678.0,0.07838385]
[1739930509110,0.768,2678.1,2677.9,0.68164093]
[1739930509723,0.768,2678.1,2677.2,1.2290251]
[1739930509912,0.768,2678.1,2677.2,6.5890251]
[1739930510235,0.768,2678.1,2677.3,0.73786442]
[1739930510796,0.7991,2678.4,2677.4,0.8034]
[1739930511004,0.7991,2678.4,2677.6,0.8034]
[1739930511228,0.7991,2678.4,2677.7,0.11606996]
[1739930512037,2.49867917,2678.2,2677.7,0.07872967]
[1739930512634,2.49867917,2678.2,2677.7,0.11606997]
[1739930513215,0.7991,2678.4,2677.8,0.68225474]
[1739930513409,3.29777917,2678.4,2677.8,0.68225474]
[1739930513618,3.29777917,2678.4,2677.9,0.07847812]
[1739930514621,3.29777917,2678.4,2678.0,0.68225474]
[1739930515138,3.29777917,2678.4,2678.1,0.0783274]
[1739930515739,3.29777917,2678.4,2678.2,0.68225474]
[1739930516121,3.29777917,2678.4,2678.3,0.0781452]
[1739930516637,3.29777917,2678.4,2678.2,0.68225474]
[1739930516841,3.29777917,2678.4,2678.3,0.0781263]
[1739930517341,3.29777917,2678.4,2678.2,0.68225474]
[1739930517542,3.29777917,2678.4,2678.3,0.26240179]
[1739930517727,3.29777917,2678.4,2678.3,0.34052809]
[1739930518240,3.29777917,2678.4,2678.3,0.26240179]
[1739930520539,3.29777917,2678.4,2677.6,6.1634]
[1739930520741,3.29777917,2678.4,2677.7,0.61634]
[1739930520928,3.29777917,2678.4,2677.7,0.69481134]
[1739930522641,3.29777917,2678.4,2677.8,0.68572966]
[1739930522946,0.7568,2678.0,2677.9,0.0784088]
[1739930523249,1.08234792,2678.0,2677.9,0.0784088]
[1739930523411,0.7568,2678.0,2677.9,0.0784088]
[1739930524419,2.49867917,2678.1,2677.9,0.0784088]
[1739930524620,2.49867917,2678.1,2677.6,5.36]
[1739930524930,2.50367917,2678.4,2677.7,0.80264328]
[1739930525132,2.50367917,2678.4,2677.8,0.61626433]
[1739930525335,2.50367917,2678.4,2677.9,0.0373387]
[1739930525509,2.50367917,2678.4,2677.9,0.11583571]
[1739930525948,2.50367917,2678.4,2677.9,0.07849701]
[1739930526109,2.50367917,2678.4,2677.8,0.61626433]
[1739930526454,2.50367917,2678.4,2677.9,0.26942355]
[1739930527334,3.25867917,2678.1,2677.9,0.07849701]
[1739930527647,3.25867917,2678.1,2677.7,1.29300105]
[1739930527824,2.49867917,2677.8,2677.7,0.52770105]
[1739930528026,2.49867917,2677.8,2677.2,0.4319251]
[1739930528921,2.49867917,2677.5,2677.2,0.62720057]
[1739930529253,2.49867917,2677.5,2677.2,0.4319251]
[1739930529749,2.49867917,2677.5,2677.3,0.26397419]
[1739930531052,2.49867917,2677.5,2677.0,0.42242422]
[1739930531352,5.93,2678.3,2677.0,0.42242422]
[1739930531353,2.49867917,2677.8,2677.1,0.79545097]
[1739930531512,5.38,2678.2,2677.1,3.77267686]
[1739930531513,2.49867917,2678.1,2677.1,3.77267686]
[1739930531723,2.49867917,2678.1,2677.2,1.71361011]
[1739930531914,2.49867917,2677.8,2677.2,1.71361011]
[1739930533653,2.49867917,2677.8,2677.3,0.42242422]
[1739930534954,3.30587917,2677.8,2677.4,0.26364366]
[1739930535919,2.49867917,2677.5,2677.4,0.26364366]
[1739930536940,2.49867917,2677.5,2677.0,0.7654]
[1739930537315,2.49867917,2677.5,2677.0,0.80275099]
[1739930537572,2.49867917,2677.8,2677.0,0.80275099]
[1739930537778,2.49867917,2677.8,2677.0,0.7654]
[1739930537958,2.49867917,2678.0,2677.2,0.7708]
[1739930538139,0.278,2678.4,2677.4,0.7708]
[1739930538140,3.26357917,2678.3,2677.4,0.7708]
[1739930538454,2.49867917,2678.3,2677.6,0.7708]
[1739930538841,2.49867917,2678.3,2677.7,0.07921487]
[1739930539163,2.49867917,2678.3,2677.9,0.7571]
[1739930539476,0.005,2678.4,2677.9,0.7571]
[1739930539619,0.005,2678.4,2678.0,1.28522677]
[1739930540449,0.005,2678.4,2678.0,0.83608877]
[1739930540835,2.49867917,2678.3,2678.1,0.26353675]
[1739930541122,0.005,2678.4,2678.2,0.0783025]
[1739930542548,0.005,2678.4,2678.0,0.7571]
[1739930542748,0.005,2678.4,2678.3,0.07822716]
[1739930542959,0.005,2678.4,2678.0,0.7571]
[1739930543141,0.005,2678.4,2678.3,0.07822716]
[1739930543759,0.005,2678.4,2678.0,0.7571]
[1739930544060,0.005,2678.4,2678.3,0.7895]
[1739930544427,0.005,2678.4,2678.3,0.86711604]
[1739930547827,0.005,2678.4,2678.3,3.86711604]
[1739930548027,0.005,2678.4,2678.3,7.60082604]
[1739930548436,0.005,2678.4,2678.3,12.96082604]
[1739930548726,0.005,2678.4,2678.3,15.25550334]
[1739930549761,0.005,2678.4,2678.3,14.70550334]
[1739930549968,0.005,2678.4,2678.3,15.94011569]
[1739930550632,0.005,2678.4,2678.3,12.20640569]
[1739930551030,0.005,2678.4,2678.3,11.65640569]
[1739930551246,0.005,2678.4,2678.3,6.91172839]
[1739930551763,0.005,2678.4,2678.3,0.76222839]
[1739930553036,0.7728,2678.4,2678.3,0.76222839]
[1739930553443,0.7728,2678.4,2678.3,0.07761604]
[1739930553649,0.7728,2678.4,2677.9,5.36]
[1739930554065,0.7728,2678.4,2678.0,0.07763428]
[1739930555332,2.49867917,2678.3,2678.0,0.07763428]
[1739930555537,2.49867917,2678.3,2677.6,9.9092665]
[1739930555939,2.49867917,2678.3,2677.7,0.07786039]
[1739930556977,2.49867917,2678.3,2677.8,0.2626759]
[1739930557271,2.49867917,2678.3,2677.9,0.07779154]
[1739930558173,0.7661,2678.2,2677.9,0.07779154]
[1739930558763,0.7661,2678.2,2677.7,0.2626759]
[1739930559307,0.7661,2678.2,2677.8,0.07786691]
[1739930559574,0.8151,2677.9,2677.7,0.2626759]
[1739930559741,0.8151,2677.9,2677.3,0.8136]
[1739930559936,0.8151,2677.9,2677.4,0.49658842]
[1739930560140,0.8151,2677.9,2677.2,0.42037511]
[1739930561637,0.8151,2677.9,2677.3,0.26316296]
[1739930562790,2.49867917,2678.0,2677.4,0.7721]
[1739930563485,2.49867917,2678.0,2677.4,1.03526296]
[1739930564359,0.7565,2678.1,2677.4,1.03526296]
[1739930564564,0.7565,2678.1,2677.5,0.4770283]
[1739930565150,0.7565,2678.1,2677.4,1.03526296]
[1739930565383,0.7565,2678.1,2677.4,0.7721]
[1739930566859,0.7565,2678.1,2677.5,0.26331482]
[1739930567985,0.7565,2678.1,2677.6,0.26331482]
[1739930568288,0.7565,2678.1,2677.6,0.34184896]
[1739930568487,6.1442,2678.3,2677.8,0.7722]
[1739930568790,6.1442,2678.3,2677.7,3.37152425]
[1739930568791,0.005,2678.4,2678.2,0.7861]
[1739930568985,0.005,2678.4,2678.3,0.03733065]
[1739930569189,0.005,2678.4,2678.3,0.07817671]
[1739930569410,0.005,2678.4,2678.3,1.29581767]
[1739930569605,0.005,2678.4,2678.3,1.37399438]
[1739930570310,0.8228,2678.4,2678.3,0.07817671]
[1739930570607,0.8228,2678.4,2678.1,8.36]
[1739930570822,0.8228,2678.4,2678.3,0.07780508]
[1739930571018,0.8228,2678.4,2678.3,0.26331482]
[1739930571313,0.8228,2678.4,2678.3,0.34112619]
[1739930572079,0.005,2678.4,2678.3,0.91123881]
[1739930572310,0.005,2678.4,2678.3,0.64792399]
[1739930575220,0.005,2678.4,2678.3,0.07781137]
[1739930575716,0.005,2678.4,2678.3,0.07782397]
[1739930575923,0.005,2678.4,2678.1,6.1183]
[1739930576127,0.005,2678.4,2678.2,0.07789931]
[1739930578923,0.803,2678.3,2678.2,0.07789931]
[1739930579117,0.803,2678.3,2677.9,3.0]
[1739930579308,0.803,2678.3,2678.2,0.07789302]
[1739930579703,0.803,2678.3,2677.9,3.0]
[1739930579929,0.005,2678.4,2678.2,0.07789302]
[1739930580128,0.005,2678.4,2677.9,3.0]
[1739930580332,0.005,2678.4,2678.3,0.07781767]
[1739930580639,0.005,2678.4,2678.0,0.30074671]
[1739930580827,0.005,2678.4,2678.3,0.07781767]
[1739930581029,0.005,2678.4,2678.1,0.33007467]
[1739930581231,0.005,2678.4,2678.3,0.07781767]
[1739930581396,0.005,2678.4,2678.3,0.7864]
[1739930581598,0.005,2678.4,2678.3,0.86421767]
[1739930581825,0.005,2678.4,2678.3,2.16002344]
[1739930582026,0.005,2678.4,2678.3,2.42343395]
[1739930582430,0.005,2678.4,2678.3,9.1944739]
[1739930582627,0.005,2678.4,2678.3,9.15714395]
[1739930583237,0.005,2678.4,2678.3,5.42343395]
[1739930583436,0.005,2678.4,2678.3,2.42343395]
[1739930584138,0.005,2678.4,2678.3,0.76269605]
[1739930585660,0.005,2678.4,2678.3,1.11082818]
[1739930586374,0.005,2678.4,2678.3,4.88186633]
[1739930586877,0.005,2678.4,2678.3,4.84453818]
[1739930587283,0.005,2678.4,2678.3,8.39453818]
[1739930587439,0.005,2678.4,2678.3,10.18552278]
[1739930587780,0.005,2678.4,2678.3,11.68328065]
[1739930587968,0.005,2678.4,2678.3,12.02972237]
[1739930588169,0.005,2678.4,2678.3,15.76343237]
[1739930588754,0.005,2678.4,2678.3,16.31343237]
[1739930590650,0.005,2678.4,2678.3,25.12343237]
[1739930590851,0.005,2678.4,2678.3,25.64939831]
[1739930591285,0.005,2678.4,2678.3,25.74939831]
[1739930592851,0.1465638,2679.0,2678.9,3.73287]
[1739930593078,0.1465638,2679.0,2678.9,14.00768694]
[1739930594502,0.1465638,2679.0,2678.9,14.35412866]
[1739930594706,0.1465638,2679.0,2678.9,15.56497298]
[1739930596907,0.1465638,2679.0,2678.9,24.37497298]
[1739930599435,0.1465638,2679.0,2678.9,20.64210298]
[1739930599563,0.1465638,2679.0,2678.9,24.37497298]
[1739930599760,0.1465638,2679.0,2678.9,20.09210298]
[1739930599976,0.1465638,2679.0,2678.9,16.74566126]
[1739930600396,0.1465638,2679.0,2678.9,15.92056126]
[1739930601504,0.1465638,2679.0,2678.9,14.97312745]
[1739930601820,0.1465638,2679.0,2678.9,14.51004574]
[1739930602020,0.9790638,2679.0,2678.9,14.51004574]
[1739930602527,0.9790638,2679.0,2678.9,0.34004574]
[1739930603244,0.9790638,2679.0,2678.9,0.07663523]
[1739930603533,0.9790638,2679.0,2678.3,5.36]
[1739930603832,0.8322,2678.6,2678.0,5.79750799]
[1739930604332,0.8322,2678.6,2678.0,0.43750799]
[1739930604540,0.8322,2678.6,2678.1,0.03733525]
[1739930604832,0.8322,2678.6,2678.0,0.43750799]
[1739930605011,0.8322,2678.6,2678.0,4.17154799]
[1739930605333,0.8322,2678.6,2678.1,0.7536254]
[1739930606153,0.8322,2678.6,2678.2,3.73379]
[1739930606352,0.8322,2678.6,2678.2,3.77112172]
[1739930606552,0.8322,2678.6,2678.2,0.03733172]
[1739930606700,0.8322,2678.6,2678.2,3.73381]
[1739930606943,0.8001,2678.9,2678.3,0.83350669]
[1739930607424,0.8001,2678.9,2678.2,0.26239847]
[1739930607600,2.49867917,2678.7,2678.2,0.26239847]
[1739930607804,0.7825,2678.6,2678.2,0.26239847]
[1739930608649,0.7825,2678.6,2678.1,0.26239847]
[1739930609334,0.7825,2678.6,2678.1,0.7781182]
[1739930609655,0.7825,2678.6,2678.1,0.26239847]
[1739930610117,0.764,2678.5,2678.2,0.26239847]
[1739930611631,0.764,2678.5,2677.9,0.41984752]
[1739930611826,0.764,2678.5,2677.8,5.36]
[1739930612016,0.764,2678.5,2677.8,6.196]
[1739930613206,0.764,2678.5,2677.9,0.07430901]
[1739930613914,0.1465638,2679.0,2677.9,0.07430901]
[1739930613915,0.7811,2678.2,2677.9,0.07430901]
[1739930614343,0.7811,2678.2,2677.9,0.11164634]
[1739930614507,0.7811,2678.5,2677.9,0.07430901]
[1739930614708,0.7811,2678.5,2678.0,0.9168609]
[1739930614938,0.7811,2678.5,2678.0,0.99211449]
[1739930615442,0.7811,2678.5,2678.0,0.07525359]
[1739930615938,0.7811,2678.5,2678.1,0.07509006]
[1739930616142,2.49867917,2678.3,2677.8,5.36]
[1739930616339,0.7811,2678.2,2677.4,5.36]
[1739930616522,0.7811,2678.2,2677.5,0.91258]
[1739930617345,0.7811,2678.2,2677.5,5.38634073]
[1739930617507,0.7811,2678.2,2677.5,1.65162073]
[1739930618010,0.7811,2678.2,2677.6,0.2621885]
[1739930619512,0.7811,2678.2,2677.5,1.65162073]
[1739930619843,0.7811,2678.2,2677.6,0.70116207]
[1739930624342,0.7811,2678.2,2677.5,1.65162073]
[1739930625344,0.7811,2678.2,2677.5,0.73904073]
[1739930628135,0.7811,2678.2,2677.6,0.07572517]
[1739930628339,0.7811,2678.2,2677.7,3.73453]
[1739930628537,0.7811,2678.2,2677.7,0.07564979]
[1739930628733,0.7811,2678.2,2677.5,4.5110786]
[1739930628938,0.7811,2678.2,2677.8,0.07557442]
[1739930629137,0.7811,2678.2,2677.6,0.98710786]
[1739930629339,0.7811,2678.2,2677.9,0.07549905]
[1739930629645,0.7811,2678.2,2677.6,1.24925875]
[1739930629847,0.7811,2678.2,2678.0,0.07542369]
[1739930630048,0.7811,2678.2,2677.7,4.52136]
[1739930630247,0.7997,2678.6,2678.1,0.07534833]
[1739930630447,0.7997,2678.6,2677.7,5.13560509]
[1739930631063,0.7997,2678.6,2677.8,0.07546104]
[1739930631265,2.49867917,2678.6,2677.8,0.07546104]
[1739930631464,2.49867917,2678.6,2677.8,0.68160227]
[1739930631465,0.7997,2678.4,2677.8,0.68160227]
[1739930631766,2.49867917,2678.3,2677.9,0.07537937]
[1739930631929,0.7997,2678.2,2677.9,0.07537937]
[1739930633064,0.7997,2678.2,2677.7,0.74280963]
[1739930633065,0.7997,2678.2,2678.0,0.07530401]
[1739930633228,0.7997,2678.2,2677.7,0.74280963]
[1739930633427,0.7997,2678.2,2677.8,0.07545474]
[1739930633663,0.7997,2678.2,2677.7,0.74280963]
[1739930633874,0.7997,2678.2,2677.8,0.07552403]
[1739930634174,0.7997,2678.2,2677.7,0.74280963]
[1739930634369,0.7997,2678.2,2677.9,0.07544866]
[1739930634682,0.7997,2678.2,2678.0,0.0753733]
[1739930634968,0.7997,2678.2,2677.8,0.41945138]
[1739930635268,0.7997,2678.2,2677.8,0.90913648]
[1739930635769,0.7997,2678.2,2677.9,0.07544866]
[1739930636065,0.7997,2678.2,2677.9,0.33848103]
[1739930639574,0.7513,2678.5,2678.1,0.26303237]
[1739930639768,0.7513,2678.5,2678.1,0.33829881]
[1739930639970,1.07629792,2678.5,2678.1,0.33829881]
[1739930640182,0.7886,2678.4,2678.1,0.33829881]
[1739930640978,0.7886,2678.4,2678.1,0.07526644]
[1739930641281,0.32499792,2678.5,2677.9,0.34653771]
[1739930641282,0.799,2678.2,2677.9,0.34653771]
[1739930641644,0.799,2678.2,2677.8,0.34653771]
[1739930642946,0.799,2678.2,2677.5,1.07853086]
[1739930643147,0.799,2678.2,2677.9,0.07535417]
[1739930643346,0.799,2678.2,2677.5,1.07853086]
[1739930643581,0.799,2678.2,2678.0,0.07527881]
[1739930643780,0.799,2678.2,2677.5,1.07853086]
[1739930643958,0.799,2678.2,2678.1,0.07520345]
[1739930644157,1.12876792,2678.2,2677.7,0.42142972]
[1739930644385,0.799,2678.2,2678.1,0.07520345]
[1739930644856,0.799,2678.2,2677.7,0.42142972]
[1739930645056,0.799,2678.2,2677.8,0.07542954]
[1739930645370,0.799,2678.2,2677.7,0.42142972]
[1739930645566,0.799,2678.2,2677.9,0.07535417]
[1739930645881,0.799,2678.2,2678.0,0.07527881]
[1739930646082,1.12876792,2678.2,2678.0,0.07527881]
[1739930647248,0.799,2678.2,2678.0,0.07527881]
[1739930647453,0.799,2678.2,2677.6,0.4213286]
[1739930647715,0.799,2678.2,2677.7,0.07550491]
[1739930647905,2.49867917,2678.0,2677.7,0.07550491]
[1739930648202,0.7636,2677.8,2677.7,0.07550491]
[1739930648677,0.7636,2677.8,2677.4,5.36]
[1739930648885,0.7636,2677.8,2676.6,0.28051843]
[1739930648886,0.7636,2677.8,2677.5,0.07565568]
[1739930649085,0.7636,2677.8,2677.1,3.73537]
[1739930649287,0.7636,2677.8,2677.2,0.07588186]
[1739930649580,0.7636,2677.8,2677.3,0.38112519]
[1739930649992,0.7636,2677.8,2677.4,0.11307542]
[1739930650206,0.7636,2677.8,2677.4,0.76040666]
[1739930650413,0.8316,2678.1,2677.4,1.58320666]
[1739930650853,0.8316,2678.1,2677.4,5.31806666]
[1739930651047,0.8316,2678.1,2677.5,0.67761688]
[1739930651263,5.38,2678.2,2677.7,4.54522]
[1739930651485,5.38,2678.2,2677.8,3.81035501]
[1739930651684,0.764,2678.5,2677.9,0.03733699]
[1739930651850,0.764,2678.5,2678.0,0.07565678]
[1739930652051,0.7795,2678.8,2678.1,0.751]
[1739930652253,0.7795,2678.8,2678.2,0.07550607]
[1739930653474,0.7795,2678.8,2678.3,0.26333292]
[1739930653668,0.7795,2678.8,2678.4,0.07535539]
[1739930654587,0.9563638,2679.0,2678.4,0.112688]
[1739930654888,0.9563638,2679.0,2678.5,0.41096909]
[1739930655105,0.9563638,2679.0,2678.6,0.07520473]
[1739930655257,0.9563638,2679.0,2678.3,5.36]
[1739930655576,0.9563638,2679.0,2678.4,0.07535539]
[1739930655977,2.49867917,2678.9,2678.4,0.07535539]
[1739930656160,0.8062,2678.8,2678.4,0.07535539]
[1739930656354,2.49867917,2678.6,2678.5,0.2626738]
[1739930656789,2.49867917,2678.6,2678.5,0.33795385]
[1739930657381,0.8062,2678.8,2678.5,0.33795385]
[1739930657957,0.8062,2678.8,2678.5,0.07528005]
[1739930659590,2.49867917,2678.9,2678.5,0.07528005]
[1739930660298,0.9648638,2679.0,2678.5,0.70134806]
[1739930661296,0.9648638,2679.0,2678.6,0.03732903]
[1739930661494,0.9648638,2679.0,2678.7,0.0751294]
[1739930662192,0.9648638,2679.0,2678.4,0.8254]
[1739930662395,0.9648638,2679.0,2678.8,0.07442423]
[1739930662596,0.9648638,2679.0,2678.4,0.8254]
[1739930662799,0.9648638,2679.0,2678.9,0.07434892]
[1739930662998,0.9648638,2679.0,2678.5,0.65586904]
[1739930663200,0.9648638,2679.0,2678.9,0.07434892]
[1739930663401,0.9648638,2679.0,2678.5,0.65586904]
[1739930663568,0.9648638,2679.0,2678.9,0.07434892]
[1739930663769,0.9648638,2679.0,2678.5,0.65586904]
[1739930664006,0.9648638,2679.0,2678.9,0.07434892]
[1739930664186,0.9648638,2679.0,2678.6,0.22419795]
[1739930664391,0.9648638,2679.0,2678.9,0.07434892]
[1739930664564,0.1465638,2679.0,2678.6,0.22419795]
[1739930664765,0.1465638,2679.0,2678.9,0.07434892]
[1739930664969,0.1465638,2679.0,2678.8,0.765]
[1739930665172,0.1465638,2679.0,2678.9,0.07392067]
[1739930667410,0.1465638,2679.0,2678.9,1.06712574]
[1739930670271,0.1465638,2679.0,2678.9,0.07392067]
[1739930670471,0.1465638,2679.0,2678.7,5.36]
[1739930670670,0.1465638,2679.0,2678.8,0.07383859]
[1739930670897,0.1465638,2679.0,2678.7,5.36]
[1739930671109,0.1465638,2679.0,2678.8,0.07383859]
[1739930671373,0.1465638,2679.0,2678.9,0.54338386]
[1739930671576,0.1465638,2679.0,2678.9,0.61714714]
[1739930673207,0.1465638,2679.0,2678.9,0.07376328]
[1739930673569,0.1465638,2679.0,2678.7,5.36]
[1739930673785,0.1465638,2679.0,2678.9,0.07366885]
[1739930673989,0.1465638,2679.0,2678.8,0.07378193]
[1739930674206,0.1465638,2679.0,2678.9,0.07370662]
[1739930674552,0.1465638,2679.0,2678.7,5.36]
[1739930674705,0.1465638,2679.0,2678.9,0.07370662]
[1739930674911,0.1465638,2679.0,2678.7,5.36]
[1739930675116,0.1465638,2679.0,2678.8,0.07378193]
[1739930675321,0.1465638,2679.0,2678.7,5.36]
[1739930675526,0.1465638,2679.0,2678.8,0.07378193]
[1739930675728,0.1465638,2679.0,2678.7,5.36]
[1739930676011,0.1465638,2679.0,2678.8,0.07378193]
[1739930676310,0.1465638,2679.0,2678.7,5.36]
[1739930676474,0.1465638,2679.0,2678.8,0.07378193]
[1739930676675,0.1465638,2679.0,2678.7,5.36]
[1739930676888,0.1465638,2679.0,2678.8,0.07378193]
[1739930677089,0.1465638,2679.0,2678.4,1.54011046]
[1739930677288,0.1465638,2679.0,2678.5,0.76401895]
[1739930678013,0.7506,2678.9,2678.5,0.0740079]
[1739930678322,0.7506,2678.8,2678.3,5.36]
[1739930678532,0.7506,2678.8,2678.4,0.07408324]
[1739930681938,0.7506,2678.8,2678.0,5.36]
[1739930682221,0.7506,2678.5,2678.1,0.07430927]
[1739930682614,0.7506,2678.5,2677.7,3.8045]
[1739930682830,0.7506,2678.5,2678.2,0.07423392]
[1739930683134,0.7506,2678.5,2678.3,0.07415858]
[1739930683329,2.49867917,2678.4,2677.6,0.43894887]
[1739930683493,0.8223,2677.9,2677.7,0.07461073]
[1739930683830,0.8223,2677.9,2677.8,0.34632556]
[1739930684204,0.8223,2677.9,2677.8,0.42147178]
[1739930685217,0.8223,2677.9,2677.8,0.07514622]
[1739930685620,0.8223,2677.9,2677.3,1.16128258]
[1739930685928,0.8223,2677.9,2677.3,2.26687484]
[1739930686132,0.8223,2677.9,2677.4,0.33837402]
[1739930687728,0.8223,2677.9,2677.4,0.07544775]
[1739930689531,0.8152,2678.1,2677.4,0.11279357]
[1739930689692,0.8152,2678.1,2677.5,0.8306]
[1739930689898,0.8152,2678.1,2677.6,0.07597716]
[1739930690303,0.8152,2678.1,2677.3,4.84574513]
[1739930690514,0.8152,2678.1,2677.4,0.07605233]
[1739930690720,0.8152,2678.1,2677.5,0.8224]
[1739930690923,0.8152,2678.1,2677.6,0.07590156]
[1739930691255,0.8152,2678.1,2677.6,0.53921572]
[1739930692608,0.8152,2678.1,2677.6,0.07590156]
[1739930694141,3.31387917,2678.1,2677.6,0.07590156]
[1739930694336,3.31387917,2678.1,2677.3,1.50105287]
[1739930694543,3.31387917,2678.1,2677.4,0.07600821]
[1739930695337,3.31387917,2678.1,2677.4,0.11335154]
[1739930695542,0.8152,2678.1,2677.5,0.5722868]
[1739930695741,0.8152,2678.1,2677.6,0.07590153]
[1739930696343,0.8152,2678.1,2677.4,3.99763266]
[1739930696524,0.8152,2678.1,2677.5,0.07593912]
[1739930697279,0.8152,2678.1,2677.5,3.81068912]
[1739930697489,0.7675,2678.3,2677.6,1.22673718]
[1739930697839,0.7675,2678.3,2677.7,0.07578836]
[1739930698346,2.49867917,2678.1,2677.7,0.07578836]
[1739930698547,0.825,2678.0,2677.4,0.8131]
[1739930698857,0.825,2678.0,2677.5,0.07593282]
[1739930700368,0.8132,2678.2,2677.5,0.11327606]
[1739930700573,0.8132,2678.2,2677.5,0.61608871]
[1739930700930,0.8132,2678.2,2677.5,4.35089871]
[1739930701138,3.32187917,2678.4,2677.7,3.73454]
[1739930701433,0.8232,2678.4,2677.8,0.11308425]
[1739930701639,0.8232,2678.6,2677.9,0.8245]
[1739930701840,0.8232,2678.6,2677.9,4.55868]
[1739930702042,0.8232,2678.6,2678.0,0.5390047]
[1739930702431,0.8232,2678.6,2678.1,0.03733585]